[Event "Titled Tuesday Blitz June 21 Late 2022"]
[White "Nilsen, Tobias Lang"]
[Black "Tanenbaum, Zachary"]
[WhiteFideId "1521624"]
[BlackFideId "2060850"]
[WhiteElo "2014"]
[BlackElo "2175"]
[Result "0-1"]
[Round "01"]
[TimeControl "180+1"]
[Date "2022.06.22"]
[WhiteClock "0:00:12"]
[BlackClock "0:00:13"]

1. f4 {[%clk 0:03:00]}  d5 {[%clk 0:02:59]} 2. Nf3 {[%clk 0:03:00]}  Nf6 {[%clk 0:03:00]} 3. g3 {[%clk 0:03:01]}  c5 {[%clk 0:03:00]} 4. Bg2 {[%clk 0:03:01]}  Nc6 {[%clk 0:03:01]} 5. O-O {[%clk 0:03:02]}  Bf5 {[%clk 0:03:01]} 6. d3 {[%clk 0:03:03]}  e6 {[%clk 0:03:01]} 7. Nc3 {[%clk 0:03:03]}  Be7 {[%clk 0:03:01]} 8. Qe1 {[%clk 0:03:03]}  d4 {[%clk 0:02:57]} 9. e4 {[%clk 0:03:03]}  dxe3 {[%clk 0:02:53]} 10. Bxe3 {[%clk 0:03:04]}  O-O {[%clk 0:02:49]} 11. Kh1 {[%clk 0:03:04]}  Nd5 {[%clk 0:02:40]} 12. Bd2 {[%clk 0:03:03]}  Rc8 {[%clk 0:02:39]} 13. Ne4 {[%clk 0:03:02]}  Ncb4 {[%clk 0:02:32]} 14. Qd1 {[%clk 0:02:50]}  Nf6 {[%clk 0:02:28]} 15. a3 {[%clk 0:02:48]}  Nc6 {[%clk 0:02:23]} 16. Qe2 {[%clk 0:02:45]}  Nd4 {[%clk 0:02:18]} 17. Nxd4 {[%clk 0:02:45]}  cxd4 {[%clk 0:02:19]} 18. Bb4 {[%clk 0:02:43]}  Bxb4 {[%clk 0:02:17]} 19. axb4 {[%clk 0:02:44]}  Nd5 {[%clk 0:02:15]} 20. Rxa7 {[%clk 0:02:05]}  Qb6 {[%clk 0:02:14]} 21. Raa1 {[%clk 0:02:00]}  Ne3 {[%clk 0:02:13]} 22. Rfc1 {[%clk 0:01:59]}  Qxb4 {[%clk 0:02:13]} 23. Bf3 {[%clk 0:01:58]}  Qxb2 {[%clk 0:02:01]} 24. Rab1 {[%clk 0:01:58]}  Qa3 {[%clk 0:01:48]} 25. g4 {[%clk 0:01:38]}  Bxe4 {[%clk 0:01:46]} 26. Bxe4 {[%clk 0:01:38]}  Qd6 {[%clk 0:01:44]} 27. Qf3 {[%clk 0:01:33]}  b6 {[%clk 0:01:42]} 28. c4 {[%clk 0:01:29]}  f5 {[%clk 0:01:19]} 29. gxf5 {[%clk 0:01:28]}  Nxf5 {[%clk 0:01:16]} 30. Rg1 {[%clk 0:01:24]}  Ne3 {[%clk 0:01:13]} 31. Qh5 {[%clk 0:01:19]}  Nf5 {[%clk 0:01:13]} 32. Rg5 {[%clk 0:01:04]}  Qxf4 {[%clk 0:01:09]} 33. Rbg1 {[%clk 0:01:03]}  Rc7 {[%clk 0:01:07]} 34. R5g4 {[%clk 0:00:56]}  Qd6 {[%clk 0:00:58]} 35. Rh4 {[%clk 0:00:49]}  g6 {[%clk 0:00:33]} 36. Rhg4 {[%clk 0:00:20]}  Rg7 {[%clk 0:00:30]} 37. Qh3 {[%clk 0:00:18]}  Ne3 {[%clk 0:00:30]} 38. Rh4 {[%clk 0:00:13]}  Rf2 {[%clk 0:00:23]} 39. Qg3 {[%clk 0:00:08]}  Qxg3 {[%clk 0:00:22]} 40. hxg3 {[%clk 0:00:09]}  Rgf7 {[%clk 0:00:21]} 41. Rb1 {[%clk 0:00:06]}  Rf1+ {[%clk 0:00:19]} 42. Rxf1 {[%clk 0:00:07]}  Rxf1+ {[%clk 0:00:20]} 43. Kh2 {[%clk 0:00:07]}  Rf2+ {[%clk 0:00:18]} 44. Kg1 {[%clk 0:00:07]}  Rd2 {[%clk 0:00:18]} 45. Rf4 {[%clk 0:00:06]}  Nf5 {[%clk 0:00:17]} 46. Bxf5 {[%clk 0:00:06]}  gxf5 {[%clk 0:00:15]} 47. Rxd4 {[%clk 0:00:06]}  e5 {[%clk 0:00:12]} 48. Rd5 {[%clk 0:00:06]}  Kg7 {[%clk 0:00:12]} 49. Kf1 {[%clk 0:00:05]}  Kf6 {[%clk 0:00:11]} 50. Ke1 {[%clk 0:00:06]}  Rg2 {[%clk 0:00:11]} 51. Rd6+ {[%clk 0:00:07]}  Kg5 {[%clk 0:00:11]} 52. Rxb6 {[%clk 0:00:06]}  Rxg3 {[%clk 0:00:12]} 53. Rd6 {[%clk 0:00:06]}  h5 {[%clk 0:00:11]} 54. c5 {[%clk 0:00:06]}  h4 {[%clk 0:00:11]} 55. c6 {[%clk 0:00:06]}  h3 {[%clk 0:00:10]} 56. Rd8 {[%clk 0:00:06]}  Kf4 {[%clk 0:00:08]} 57. Rh8 {[%clk 0:00:06]}  Rg6 {[%clk 0:00:05]} 58. c7 {[%clk 0:00:05]}  h2 {[%clk 0:00:04]} 59. Rxh2 {[%clk 0:00:04]}  Rc6 {[%clk 0:00:04]} 60. Rh7 {[%clk 0:00:04]}  Ke3 {[%clk 0:00:05]} 61. Kf1 {[%clk 0:00:02]}  f4 {[%clk 0:00:05]} 62. Re7 {[%clk 0:00:01]}  Kd4 {[%clk 0:00:04]} 63. Kf2 {[%clk 0:00:02]}  Kd5 {[%clk 0:00:03]} 64. Kf3 {[%clk 0:00:02]}  Kd6 {[%clk 0:00:04]} 65. Rh7 {[%clk 0:00:02]}  Rxc7 {[%clk 0:00:04]} 66. Rh6+ {[%clk 0:00:02]}  Kd5 {[%clk 0:00:05]} 67. Ra6 {[%clk 0:00:02]}  Rc3 {[%clk 0:00:04]} 68. Ke2 {[%clk 0:00:02]}  Rc5 {[%clk 0:00:04]} 69. Ra4 {[%clk 0:00:02]}  Rb5 {[%clk 0:00:04]} 70. Re4 {[%clk 0:00:02]}  Ke6 {[%clk 0:00:04]} 71. Kf3 {[%clk 0:00:02]}  Kf5 {[%clk 0:00:04]} 72. Re2 {[%clk 0:00:03]}  Rb3 {[%clk 0:00:04]} 73. Rd2 {[%clk 0:00:03]}  Rxd3+ {[%clk 0:00:03]} 74. Rxd3 {[%clk 0:00:03]}  e4+ {[%clk 0:00:04]} 75. Ke2 {[%clk 0:00:04]}  exd3+ {[%clk 0:00:04]} 76. Kxd3 {[%clk 0:00:05]}  Kg4 {[%clk 0:00:05]} 77. Ke2 {[%clk 0:00:05]}  Kg3 {[%clk 0:00:06]} 78. Ke1 {[%clk 0:00:06]}  Kg2 {[%clk 0:00:06]} 79. Ke2 {[%clk 0:00:06]}  f3+ {[%clk 0:00:07]} 80. Ke3 {[%clk 0:00:07]}  f2 {[%clk 0:00:08]} 81. Kd4 {[%clk 0:00:08]}  f1=Q {[%clk 0:00:08]} 82. Ke5 {[%clk 0:00:09]}  Qf3 {[%clk 0:00:08]} 83. Ke6 {[%clk 0:00:09]}  Qf4 {[%clk 0:00:08]} 84. Kd5 {[%clk 0:00:10]}  Kf3 {[%clk 0:00:08]} 85. Ke6 {[%clk 0:00:10]}  Qe4+ {[%clk 0:00:09]} 86. Kf6 {[%clk 0:00:11]}  Qd5 {[%clk 0:00:09]} 87. Kg6 {[%clk 0:00:11]}  Kf4 {[%clk 0:00:10]} 88. Kf6 {[%clk 0:00:12]}  Qd6+ {[%clk 0:00:10]} 89. Kf7 {[%clk 0:00:12]}  Kg5 {[%clk 0:00:11]} 90. Kg7 {[%clk 0:00:13]}  Qd7+ {[%clk 0:00:11]} 91. Kf8 {[%clk 0:00:11]}  Kg6 {[%clk 0:00:12]} 92. Kg8 {[%clk 0:00:12]}  Qd8# {[%clk 0:00:13]} 0-1


[Site "https://www.chess.com"]

[Event "Titled Tuesday Blitz June 21 Late 2022"]
[White "Oro, Luis"]
[Black "Maltsevskaya, Aleksandra"]
[WhiteFideId "104094"]
[BlackFideId "24174041"]
[WhiteElo "2360"]
[BlackElo "2243"]
[Result "0-1"]
[Round "01"]
[TimeControl "180+1"]
[Date "2022.06.22"]
[WhiteClock "0:00:03"]
[BlackClock "0:00:33"]

1. e4 {[%clk 0:02:54]}  c5 {[%clk 0:02:59]} 2. Nf3 {[%clk 0:02:54]}  e6 {[%clk 0:02:58]} 3. d4 {[%clk 0:02:55]}  cxd4 {[%clk 0:02:58]} 4. Nxd4 {[%clk 0:02:56]}  Nc6 {[%clk 0:02:59]} 5. c4 {[%clk 0:02:56]}  Nf6 {[%clk 0:02:58]} 6. Nc3 {[%clk 0:02:55]}  Bb4 {[%clk 0:02:57]} 7. Qd3 {[%clk 0:02:50]}  O-O {[%clk 0:02:56]} 8. Be2 {[%clk 0:02:47]}  d5 {[%clk 0:02:55]} 9. Nxc6 {[%clk 0:02:46]}  bxc6 {[%clk 0:02:55]} 10. exd5 {[%clk 0:02:46]}  exd5 {[%clk 0:02:53]} 11. O-O {[%clk 0:02:46]}  Ba6 {[%clk 0:02:51]} 12. Qf3 {[%clk 0:02:15]}  d4 {[%clk 0:02:40]} 13. Qxc6 {[%clk 0:01:52]}  Qa5 {[%clk 0:02:24]} 14. Ne4 {[%clk 0:01:41]}  Nxe4 {[%clk 0:02:24]} 15. Qxe4 {[%clk 0:01:41]}  Rfe8 {[%clk 0:02:24]} 16. Qd3 {[%clk 0:01:41]}  Rac8 {[%clk 0:02:22]} 17. b3 {[%clk 0:01:40]}  Bc3 {[%clk 0:02:22]} 18. Rb1 {[%clk 0:01:38]}  Qxa2 {[%clk 0:02:20]} 19. Bf3 {[%clk 0:01:35]}  Rb8 {[%clk 0:02:19]} 20. Bd1 {[%clk 0:01:17]}  Qa5 {[%clk 0:02:15]} 21. Bf4 {[%clk 0:01:13]}  Rbd8 {[%clk 0:02:09]} 22. Bc2 {[%clk 0:01:13]}  g6 {[%clk 0:02:08]} 23. h4 {[%clk 0:01:12]}  Bb7 {[%clk 0:02:08]} 24. Bg5 {[%clk 0:00:56]}  Be4 {[%clk 0:01:55]} 25. Qd1 {[%clk 0:00:44]}  d3 {[%clk 0:01:52]} 26. Bxd8 {[%clk 0:00:41]}  Qxd8 {[%clk 0:01:53]} 27. Bxd3 {[%clk 0:00:14]}  Bxd3 {[%clk 0:01:54]} 28. Qf3 {[%clk 0:00:14]}  Bxb1 {[%clk 0:01:54]} 29. Qxc3 {[%clk 0:00:13]}  Bf5 {[%clk 0:01:53]} 30. Ra1 {[%clk 0:00:14]}  Qxh4 {[%clk 0:01:52]} 31. Rxa7 {[%clk 0:00:13]}  Rd8 {[%clk 0:01:51]} 32. Ra1 {[%clk 0:00:07]}  h5 {[%clk 0:01:51]} 33. Re1 {[%clk 0:00:07]}  Qg5 {[%clk 0:01:50]} 34. c5 {[%clk 0:00:07]}  h4 {[%clk 0:01:46]} 35. c6 {[%clk 0:00:07]}  h3 {[%clk 0:01:47]} 36. g3 {[%clk 0:00:07]}  Rc8 {[%clk 0:01:42]} 37. c7 {[%clk 0:00:08]}  Be6 {[%clk 0:01:38]} 38. Qc6 {[%clk 0:00:07]}  Bd5 {[%clk 0:00:54]} 39. Re8+ {[%clk 0:00:02]}  Kh7 {[%clk 0:00:54]} 40. Rxc8 {[%clk 0:00:03]}  h2+ {[%clk 0:00:49]} 41. Kf1 {[%clk 0:00:01]}  h1=Q+ {[%clk 0:00:49]} 42. Ke2 {[%clk 0:00:02]}  Qf3+ {[%clk 0:00:48]} 43. Ke1 {[%clk 0:00:02]}  Qe5+ {[%clk 0:00:46]} 44. Kd2 {[%clk 0:00:02]}  Qee2+ {[%clk 0:00:44]} 45. Kc1 {[%clk 0:00:03]}  Qh1# {[%clk 0:00:33]} 0-1


[Site "https://www.chess.com"]

[Event "Titled Tuesday Blitz June 21 Late 2022"]
[White "Paravyan, David"]
[Black "Wagner, Dinara"]
[WhiteFideId "4194985"]
[BlackFideId "24157570"]
[WhiteElo "2569"]
[BlackElo "2216"]
[Result "0-1"]
[Round "01"]
[TimeControl "180+1"]
[Date "2022.06.21"]
[WhiteClock "0:00:02"]
[BlackClock "0:00:06"]

1. e4 {[%clk 0:02:13]}  c5 {[%clk 0:02:59]} 2. Nf3 {[%clk 0:02:12]}  d6 {[%clk 0:02:59]} 3. d4 {[%clk 0:02:10]}  cxd4 {[%clk 0:02:59]} 4. Nxd4 {[%clk 0:02:11]}  Nf6 {[%clk 0:03:00]} 5. Nc3 {[%clk 0:02:11]}  a6 {[%clk 0:03:00]} 6. Bg5 {[%clk 0:02:10]}  e6 {[%clk 0:02:59]} 7. f4 {[%clk 0:02:07]}  Nbd7 {[%clk 0:02:56]} 8. Qf3 {[%clk 0:02:05]}  Qc7 {[%clk 0:02:55]} 9. O-O-O {[%clk 0:02:04]}  b5 {[%clk 0:02:40]} 10. Bd3 {[%clk 0:02:04]}  Bb7 {[%clk 0:02:40]} 11. Rhe1 {[%clk 0:02:04]}  Be7 {[%clk 0:02:34]} 12. Qg3 {[%clk 0:02:03]}  b4 {[%clk 0:02:32]} 13. Nd5 {[%clk 0:02:02]}  exd5 {[%clk 0:02:31]} 14. exd5 {[%clk 0:01:57]}  Kd8 {[%clk 0:02:31]} 15. Nc6+ {[%clk 0:01:56]}  Bxc6 {[%clk 0:02:28]} 16. dxc6 {[%clk 0:01:57]}  Nc5 {[%clk 0:02:15]} 17. Bc4 {[%clk 0:01:22]}  Nce4 {[%clk 0:01:47]} 18. Qe3 {[%clk 0:01:17]}  Nxg5 {[%clk 0:01:36]} 19. fxg5 {[%clk 0:01:14]}  Ne8 {[%clk 0:00:46]} 20. Rf1 {[%clk 0:00:47]}  Rf8 {[%clk 0:00:44]} 21. Bxf7 {[%clk 0:00:41]}  Qa5 {[%clk 0:00:30]} 22. h4 {[%clk 0:00:36]}  Nc7 {[%clk 0:00:27]} 23. Rde1 {[%clk 0:00:31]}  Qe5 {[%clk 0:00:17]} 24. Qd3 {[%clk 0:00:31]}  Qc5 {[%clk 0:00:15]} 25. Qe4 {[%clk 0:00:27]}  d5 {[%clk 0:00:12]} 26. Qxh7 {[%clk 0:00:22]}  Nb5 {[%clk 0:00:10]} 27. Qxg7 {[%clk 0:00:14]}  Nd4 {[%clk 0:00:10]} 28. Bg6 {[%clk 0:00:15]}  Rxf1 {[%clk 0:00:10]} 29. Rxf1 {[%clk 0:00:15]}  Kc7 {[%clk 0:00:10]} 30. Bd3 {[%clk 0:00:15]}  Re8 {[%clk 0:00:10]} 31. Qe5+ {[%clk 0:00:15]}  Kb6 {[%clk 0:00:09]} 32. Kb1 {[%clk 0:00:15]}  a5 {[%clk 0:00:09]} 33. g6 {[%clk 0:00:14]}  Nxc6 {[%clk 0:00:09]} 34. Qe6 {[%clk 0:00:13]}  a4 {[%clk 0:00:07]} 35. g7 {[%clk 0:00:13]}  a3 {[%clk 0:00:07]} 36. Qg4 {[%clk 0:00:06]}  axb2 {[%clk 0:00:06]} 37. g8=Q {[%clk 0:00:06]}  Rxg8 {[%clk 0:00:07]} 38. Qxg8 {[%clk 0:00:07]}  Qd4 {[%clk 0:00:06]} 39. Qe6 {[%clk 0:00:06]}  b3 {[%clk 0:00:06]} 40. axb3 {[%clk 0:00:06]}  Qc5 {[%clk 0:00:05]} 41. Kxb2 {[%clk 0:00:02]}  Qd4+ {[%clk 0:00:05]} 42. Kb1 {[%clk 0:00:02]}  Ba3 {[%clk 0:00:05]} 43. c3 {[%clk 0:00:02]}  Qxd3+ {[%clk 0:00:05]} 44. Ka2 {[%clk 0:00:02]}  Qxf1 {[%clk 0:00:05]} 45. b4 {[%clk 0:00:02]}  Qc1 {[%clk 0:00:04]} 46. Qe2 {[%clk 0:00:01]}  Qxc3 {[%clk 0:00:03]} 47. Qf2+ {[%clk 0:00:01]}  Kb5 {[%clk 0:00:03]} 48. h5 {[%clk 0:00:01]}  Nxb4+ {[%clk 0:00:03]} 49. Kb1 {[%clk 0:00:02]}  Qd3+ {[%clk 0:00:03]} 50. Ka1 {[%clk 0:00:02]}  Qc3+ {[%clk 0:00:04]} 51. Kb1 {[%clk 0:00:02]}  Qb3+ {[%clk 0:00:04]} 52. Ka1 {[%clk 0:00:02]}  Nc2+ {[%clk 0:00:05]} 53. Qxc2 {[%clk 0:00:02]}  Qxc2 {[%clk 0:00:06]} 0-1


[Site "https://www.chess.com"]

[Event "Titled Tuesday Blitz June 21 Late 2022"]
[White "Przybylski, Wojciech"]
[Black "Roque Sola, Jose Luis"]
[WhiteFideId "1117599"]
[BlackFideId "5120390"]
[WhiteElo "2133"]
[BlackElo "1983"]
[Result "1-0"]
[Round "01"]
[TimeControl "180+1"]
[Date "2022.06.22"]
[WhiteClock "0:00:29"]
[BlackClock "0:00:51"]

1. d4 {[%clk 0:02:53]}  Nf6 {[%clk 0:02:59]} 2. g3 {[%clk 0:02:52]}  e6 {[%clk 0:02:58]} 3. Bg2 {[%clk 0:02:52]}  c5 {[%clk 0:02:58]} 4. e3 {[%clk 0:02:51]}  Nc6 {[%clk 0:02:58]} 5. Ne2 {[%clk 0:02:51]}  b6 {[%clk 0:02:53]} 6. O-O {[%clk 0:02:49]}  Bb7 {[%clk 0:02:53]} 7. c3 {[%clk 0:02:49]}  Be7 {[%clk 0:02:53]} 8. a3 {[%clk 0:02:47]}  O-O {[%clk 0:02:53]} 9. b4 {[%clk 0:02:46]}  cxd4 {[%clk 0:02:49]} 10. exd4 {[%clk 0:02:44]}  Qc7 {[%clk 0:02:38]} 11. Bf4 {[%clk 0:02:39]}  d6 {[%clk 0:02:38]} 12. c4 {[%clk 0:02:38]}  e5 {[%clk 0:02:33]} 13. Be3 {[%clk 0:02:30]}  Nxd4 {[%clk 0:02:33]} 14. Nxd4 {[%clk 0:02:26]}  exd4 {[%clk 0:02:34]} 15. Bxb7 {[%clk 0:02:10]}  Qxb7 {[%clk 0:02:34]} 16. Bxd4 {[%clk 0:02:08]}  d5 {[%clk 0:02:22]} 17. c5 {[%clk 0:01:52]}  bxc5 {[%clk 0:02:22]} 18. bxc5 {[%clk 0:01:53]}  Ne4 {[%clk 0:02:18]} 19. Qg4 {[%clk 0:01:28]}  Bf6 {[%clk 0:02:05]} 20. Bxf6 {[%clk 0:01:25]}  Nxf6 {[%clk 0:02:06]} 21. Qd4 {[%clk 0:01:23]}  Rac8 {[%clk 0:02:02]} 22. Nd2 {[%clk 0:01:21]}  Rc6 {[%clk 0:01:43]} 23. Rfc1 {[%clk 0:01:15]}  Rfc8 {[%clk 0:01:42]} 24. Rc2 {[%clk 0:01:11]}  Qe7 {[%clk 0:01:42]} 25. Rac1 {[%clk 0:01:08]}  h6 {[%clk 0:01:28]} 26. Nb3 {[%clk 0:01:03]}  Re6 {[%clk 0:01:27]} 27. Qb4 {[%clk 0:00:56]}  Re8 {[%clk 0:01:24]} 28. c6 {[%clk 0:00:50]}  Ne4 {[%clk 0:01:13]} 29. c7 {[%clk 0:00:44]}  Qxb4 {[%clk 0:00:59]} 30. axb4 {[%clk 0:00:43]}  Rc8 {[%clk 0:00:58]} 31. Nd4 {[%clk 0:00:37]}  Re7 {[%clk 0:00:58]} 32. Nb5 {[%clk 0:00:34]}  a6 {[%clk 0:00:57]} 33. Na7 {[%clk 0:00:34]}  Nd6 {[%clk 0:00:54]} 34. Nxc8 {[%clk 0:00:33]}  Nxc8 {[%clk 0:00:54]} 35. Rc6 {[%clk 0:00:32]}  d4 {[%clk 0:00:53]} 36. Rd1 {[%clk 0:00:32]}  Rd7 {[%clk 0:00:52]} 37. Kg2 {[%clk 0:00:30]}  d3 {[%clk 0:00:51]} 38. Kf3 {[%clk 0:00:29]}  Kf8 {[%clk 0:00:51]} 39. Ke3 {[%clk 0:00:29]} 1-0


[Site "https://www.chess.com"]

[Event "Titled Tuesday Blitz June 21 Late 2022"]
[White "Roberson, Peter T"]
[Black "Shimanov, Aleksandr"]
[WhiteFideId "412384"]
[BlackFideId "4198603"]
[WhiteElo "2346"]
[BlackElo "2605"]
[Result "1-0"]
[Round "01"]
[TimeControl "180+1"]
[Date "2022.06.21"]
[WhiteClock "0:00:08"]
[BlackClock "0:00:07"]

1. e4 {[%clk 0:02:59]}  e6 {[%clk 0:02:56]} 2. d4 {[%clk 0:02:59]}  d5 {[%clk 0:02:57]} 3. Nd2 {[%clk 0:03:00]}  c5 {[%clk 0:02:56]} 4. Ngf3 {[%clk 0:03:00]}  cxd4 {[%clk 0:02:56]} 5. Nxd4 {[%clk 0:03:01]}  Nf6 {[%clk 0:02:55]} 6. exd5 {[%clk 0:02:56]}  Nxd5 {[%clk 0:02:56]} 7. N2f3 {[%clk 0:02:52]}  Bb4+ {[%clk 0:02:57]} 8. c3 {[%clk 0:02:51]}  Nxc3 {[%clk 0:02:56]} 9. bxc3 {[%clk 0:02:52]}  Bxc3+ {[%clk 0:02:57]} 10. Bd2 {[%clk 0:02:51]}  Bxd4 {[%clk 0:02:57]} 11. Nxd4 {[%clk 0:02:49]}  Qxd4 {[%clk 0:02:57]} 12. Rc1 {[%clk 0:02:45]}  O-O {[%clk 0:02:54]} 13. Be2 {[%clk 0:02:37]}  Nc6 {[%clk 0:02:53]} 14. O-O {[%clk 0:02:37]}  e5 {[%clk 0:02:30]} 15. Rc4 {[%clk 0:02:10]}  Qd8 {[%clk 0:02:19]} 16. Bf3 {[%clk 0:02:05]}  Be6 {[%clk 0:02:18]} 17. Rc5 {[%clk 0:01:52]}  Qd6 {[%clk 0:02:12]} 18. Qc1 {[%clk 0:01:43]}  Nd4 {[%clk 0:02:05]} 19. Bd1 {[%clk 0:01:29]}  Rac8 {[%clk 0:02:02]} 20. Bb4 {[%clk 0:01:28]}  Rxc5 {[%clk 0:01:54]} 21. Bxc5 {[%clk 0:01:13]}  Qc7 {[%clk 0:01:53]} 22. Qa3 {[%clk 0:01:12]}  Rd8 {[%clk 0:01:41]} 23. Qxa7 {[%clk 0:01:08]}  Nb5 {[%clk 0:01:21]} 24. Bb6 {[%clk 0:01:00]}  Qc6 {[%clk 0:00:27]} 25. Qa5 {[%clk 0:00:58]}  Rc8 {[%clk 0:00:24]} 26. Ba4 {[%clk 0:00:55]}  Bc4 {[%clk 0:00:24]} 27. Rc1 {[%clk 0:00:55]}  h6 {[%clk 0:00:22]} 28. h3 {[%clk 0:00:48]}  Rf8 {[%clk 0:00:04]} 29. Qb4 {[%clk 0:00:20]}  Qxb6 {[%clk 0:00:02]} 30. Rxc4 {[%clk 0:00:20]}  Qa6 {[%clk 0:00:02]} 31. Qxb5 {[%clk 0:00:18]}  Qd6 {[%clk 0:00:02]} 32. Bb3 {[%clk 0:00:16]}  Kh8 {[%clk 0:00:02]} 33. Qxb7 {[%clk 0:00:15]}  Qd2 {[%clk 0:00:02]} 34. Rc8 {[%clk 0:00:15]}  Rxc8 {[%clk 0:00:01]} 35. Qxc8+ {[%clk 0:00:16]}  Kh7 {[%clk 0:00:02]} 36. Qf5+ {[%clk 0:00:15]}  Kh8 {[%clk 0:00:02]} 37. Qxf7 {[%clk 0:00:13]}  Qc1+ {[%clk 0:00:02]} 38. Kh2 {[%clk 0:00:13]}  Qc8 {[%clk 0:00:03]} 39. a4 {[%clk 0:00:12]}  Qb8 {[%clk 0:00:03]} 40. g3 {[%clk 0:00:12]}  e4 {[%clk 0:00:04]} 41. Qe6 {[%clk 0:00:10]}  e3 {[%clk 0:00:03]} 42. Qxe3 {[%clk 0:00:11]}  g5 {[%clk 0:00:03]} 43. Qd4+ {[%clk 0:00:10]}  Kh7 {[%clk 0:00:04]} 44. Qe4+ {[%clk 0:00:11]}  Kg7 {[%clk 0:00:04]} 45. Qe6 {[%clk 0:00:11]}  Qa7 {[%clk 0:00:03]} 46. Kg2 {[%clk 0:00:09]}  Qb7+ {[%clk 0:00:03]} 47. Bd5 {[%clk 0:00:09]}  Qa7 {[%clk 0:00:03]} 48. a5 {[%clk 0:00:07]}  Kf8 {[%clk 0:00:03]} 49. a6 {[%clk 0:00:06]}  h5 {[%clk 0:00:03]} 50. Qf7+ {[%clk 0:00:06]}  Qxf7 {[%clk 0:00:03]} 51. Bxf7 {[%clk 0:00:07]}  Kxf7 {[%clk 0:00:04]} 52. a7 {[%clk 0:00:08]}  g4 {[%clk 0:00:04]} 53. a8=Q {[%clk 0:00:09]}  gxh3+ {[%clk 0:00:05]} 54. Kxh3 {[%clk 0:00:09]}  h4 {[%clk 0:00:05]} 55. Qc6 {[%clk 0:00:09]}  Kg7 {[%clk 0:00:06]} 56. Kxh4 {[%clk 0:00:09]}  Kh7 {[%clk 0:00:07]} 57. f4 {[%clk 0:00:08]}  Kg7 {[%clk 0:00:07]} 58. Kg5 {[%clk 0:00:08]} 1-0


[Site "https://www.chess.com"]

[Event "Titled Tuesday Blitz June 21 Late 2022"]
[White "Roman, Rodrigo"]
[Black "Yuan, Qingyu"]
[WhiteFideId "3701220"]
[BlackFideId "8609772"]
[WhiteElo "2439"]
[BlackElo "2755"]
[Result "0-1"]
[Round "01"]
[TimeControl "180+1"]
[Date "2022.06.22"]
[WhiteClock "0:00:02"]
[BlackClock "0:00:06"]

1. e4 {[%clk 0:03:00]}  c6 {[%clk 0:03:00]} 2. Nf3 {[%clk 0:03:00]}  d5 {[%clk 0:03:00]} 3. exd5 {[%clk 0:03:01]}  cxd5 {[%clk 0:03:01]} 4. d4 {[%clk 0:03:01]}  Nc6 {[%clk 0:03:01]} 5. c3 {[%clk 0:03:01]}  Bf5 {[%clk 0:02:54]} 6. Bd3 {[%clk 0:02:58]}  Bxd3 {[%clk 0:02:52]} 7. Qxd3 {[%clk 0:02:59]}  Nf6 {[%clk 0:02:53]} 8. Bf4 {[%clk 0:02:58]}  e6 {[%clk 0:02:53]} 9. O-O {[%clk 0:02:57]}  Bd6 {[%clk 0:02:50]} 10. Bg3 {[%clk 0:02:53]}  O-O {[%clk 0:02:50]} 11. Nbd2 {[%clk 0:02:53]}  Bxg3 {[%clk 0:02:46]} 12. hxg3 {[%clk 0:02:54]}  Qc7 {[%clk 0:02:44]} 13. Rfe1 {[%clk 0:02:54]}  Rab8 {[%clk 0:02:44]} 14. a4 {[%clk 0:02:52]}  a6 {[%clk 0:02:43]} 15. b4 {[%clk 0:02:51]}  Rfc8 {[%clk 0:02:39]} 16. Nb3 {[%clk 0:02:51]}  a5 {[%clk 0:02:27]} 17. Qb5 {[%clk 0:02:22]}  Na7 {[%clk 0:02:10]} 18. Qc5 {[%clk 0:02:14]}  b6 {[%clk 0:01:46]} 19. Qxc7 {[%clk 0:02:09]}  Rxc7 {[%clk 0:01:47]} 20. Rac1 {[%clk 0:01:57]}  Nc6 {[%clk 0:01:38]} 21. b5 {[%clk 0:01:42]}  Ne7 {[%clk 0:01:35]} 22. Nfd2 {[%clk 0:01:38]}  Rbc8 {[%clk 0:01:33]} 23. Re3 {[%clk 0:01:37]}  Nf5 {[%clk 0:01:28]} 24. Rd3 {[%clk 0:01:37]}  Kf8 {[%clk 0:01:24]} 25. Kf1 {[%clk 0:01:27]}  Nd6 {[%clk 0:01:24]} 26. f3 {[%clk 0:01:24]}  Nc4 {[%clk 0:01:24]} 27. Ke2 {[%clk 0:01:18]}  Nb2 {[%clk 0:01:16]} 28. g4 {[%clk 0:00:59]}  Rc4 {[%clk 0:00:51]} 29. Nxc4 {[%clk 0:00:53]}  Nxd3 {[%clk 0:00:45]} 30. Nxb6 {[%clk 0:00:46]}  Nxc1+ {[%clk 0:00:44]} 31. Nxc1 {[%clk 0:00:47]}  Rxc3 {[%clk 0:00:45]} 32. Kd2 {[%clk 0:00:37]}  Rc7 {[%clk 0:00:19]} 33. Nb3 {[%clk 0:00:29]}  Ra7 {[%clk 0:00:16]} 34. Nc5 {[%clk 0:00:21]}  Ke8 {[%clk 0:00:15]} 35. g5 {[%clk 0:00:20]}  Ng8 {[%clk 0:00:13]} 36. Nc8 {[%clk 0:00:20]}  Ra8 {[%clk 0:00:09]} 37. Nd6+ {[%clk 0:00:17]}  Ke7 {[%clk 0:00:09]} 38. Ndb7 {[%clk 0:00:17]}  f6 {[%clk 0:00:07]} 39. f4 {[%clk 0:00:16]}  h6 {[%clk 0:00:05]} 40. gxh6 {[%clk 0:00:12]}  Nxh6 {[%clk 0:00:05]} 41. Nb3 {[%clk 0:00:09]}  Nf5 {[%clk 0:00:04]} 42. Kd3 {[%clk 0:00:08]}  Nd6 {[%clk 0:00:04]} 43. N7xa5 {[%clk 0:00:08]}  Nc4 {[%clk 0:00:04]} 44. Nc6+ {[%clk 0:00:08]}  Kd6 {[%clk 0:00:04]} 45. a5 {[%clk 0:00:07]}  e5 {[%clk 0:00:04]} 46. fxe5+ {[%clk 0:00:07]}  fxe5 {[%clk 0:00:05]} 47. dxe5+ {[%clk 0:00:05]}  Nxe5+ {[%clk 0:00:06]} 48. Nxe5 {[%clk 0:00:05]}  Kxe5 {[%clk 0:00:07]} 49. b6 {[%clk 0:00:04]}  Kd6 {[%clk 0:00:06]} 50. a6 {[%clk 0:00:04]}  Rxa6 {[%clk 0:00:05]} 51. Nd4 {[%clk 0:00:02]}  Rxb6 {[%clk 0:00:05]} 52. Nf5+ {[%clk 0:00:03]}  Ke5 {[%clk 0:00:05]} 53. Nxg7 {[%clk 0:00:03]}  Rg6 {[%clk 0:00:05]} 54. Ne8 {[%clk 0:00:03]}  Rxg2 {[%clk 0:00:04]} 55. Nc7 {[%clk 0:00:04]}  Rg3+ {[%clk 0:00:04]} 56. Kd2 {[%clk 0:00:04]}  d4 {[%clk 0:00:04]} 57. Nb5 {[%clk 0:00:04]}  Ke4 {[%clk 0:00:05]} 58. Nd6+ {[%clk 0:00:04]}  Kd5 {[%clk 0:00:05]} 59. Nf5 {[%clk 0:00:05]}  Rh3 {[%clk 0:00:05]} 60. Ne7+ {[%clk 0:00:04]}  Ke4 {[%clk 0:00:05]} 61. Ng6 {[%clk 0:00:05]}  Rh2+ {[%clk 0:00:06]} 62. Kd1 {[%clk 0:00:05]}  Ke3 {[%clk 0:00:05]} 63. Ne5 {[%clk 0:00:04]}  Ra2 {[%clk 0:00:06]} 64. Nc4+ {[%clk 0:00:04]}  Kd3 {[%clk 0:00:06]} 65. Ne5+ {[%clk 0:00:04]}  Kc3 {[%clk 0:00:06]} 66. Nf3 {[%clk 0:00:02]}  d3 {[%clk 0:00:06]} 0-1


[Site "https://www.chess.com"]